fUSD/lending_fUSD_20240519
["ID","MTS","AMOUNT","RATE_DAILY","PERIOD"]
[327457538,1716079876828,-1401.02,0.00029041,2]
[327457539,1716079876838,-676.79,0.00029041,2]
[327457540,1716079876848,-544.611513,0.00029041,7]
[327457541,1716079876861,-500.0,0.00029041,2]
[327457542,1716079876871,-537.08,0.00029041,2]
[327457543,1716079876882,-6981.65,0.00029041,2]
[327457544,1716079876892,-2717.83,0.00029041,2]
[327457545,1716079876903,-838.88,0.00029041,2]
[327457546,1716079876913,-502.76,0.00029041,2]
[327457547,1716079876922,-2645.1,0.00029041,2]
[327457548,1716079876932,-500.0,0.00029041,2]
[327457549,1716079876942,-500.0,0.00029041,2]
[327457550,1716079876951,-865.2,0.00029041,2]
[327457551,1716079876961,-1132.35,0.00029041,2]
[327457552,1716079876970,-530.646126,0.00029041,7]
[327457553,1716079876979,-812.15,0.00029041,2]
[327457554,1716079876988,-1556.62,0.00029041,2]
[327457555,1716079876998,-718.44,0.00029041,2]
[327457556,1716079877007,-1265.15,0.00029041,2]
[327457557,1716079877018,-530.646126,0.00029041,7]
[327457558,1716079877027,-14055.37,0.00029041,2]
[327457559,1716079877037,-2634.63,0.00029041,2]
[327457560,1716079877047,-15063.88,0.00029041,2]
[327457561,1716079877056,-2652.66,0.00029041,2]
[327457562,1716079877065,-742.79,0.00029041,2]
[327457563,1716079877074,-621.16,0.00029041,2]
[327457564,1716079877084,-794.5,0.00029041,2]
[327457565,1716079877093,-1250.69,0.00029041,2]
[327457566,1716079877102,-693.14,0.00029041,2]
[327457567,1716079877112,-889.38,0.00029041,2]
[327457568,1716079877122,-1988.34,0.00029041,2]
[327457569,1716079877131,-500.0,0.00029041,2]
[327457570,1716079877141,-1357.07,0.00029041,2]
[327457571,1716079877151,-998.68,0.00029041,2]
[327457572,1716079877159,-500.0,0.00029041,2]
[327457573,1716079877169,-5624.591496,0.00029041,7]
[327457574,1716079877178,-478.88982557,0.00029041,2]
[327457575,1716079877188,-500.0,0.00029041,2]
[327457576,1716079877197,-500.0,0.00029041,2]
[327457577,1716079877207,-500.0,0.00029041,2]
[327457578,1716079877216,-601.38,0.00029041,2]
[327457579,1716079877225,-5624.591496,0.00029041,7]
[327457580,1716079877235,-894.0,0.00029041,2]
[327457581,1716079877244,-2431.12,0.00029041,2]
[327457582,1716079877253,-511.27,0.00029041,2]
[327457583,1716079877264,-1539.56,0.00029041,2]
[327457584,1716079877272,-500.0,0.00029041,2]
[327457585,1716079877281,-151.0,0.00029041,7]
[327457586,1716079877290,-1396.22,0.00029041,2]
[327457587,1716079877299,-500.0,0.00029041,2]
[327457588,1716079877309,-151.0,0.00029041,7]
[327457589,1716079877318,-1300.21,0.00029041,2]
[327457590,1716079877328,-2267.23,0.00029041,2]
[327457591,1716079877338,-1327.72,0.00029041,2]
[327457592,1716079877348,-500.0,0.00029041,2]
[327457593,1716079877358,-500.0,0.00029041,2]
[327457594,1716079877367,-151.0,0.00029041,7]
[327457595,1716079877377,-500.0,0.00029041,2]
[327457596,1716079877387,-3187.9,0.00029041,2]
[327457597,1716079877397,-1229.67,0.00029041,2]
[327457598,1716079877406,-500.0,0.00029041,2]
[327457599,1716079877415,-1554.51,0.00029041,2]
[327457600,1716079877426,-500.0,0.00029041,2]
[327457601,1716079877436,-500.0,0.00029041,2]
[327457602,1716079877446,-902.06,0.00029041,2]
[327457603,1716079877456,-744.32,0.00029041,2]
[327457604,1716079877465,-739.0,0.00029041,2]
[327457605,1716079877475,-500.0,0.00029041,2]
[327457606,1716079877485,-500.0,0.00029041,2]
[327457607,1716079877494,-566.09,0.00029041,2]
[327457608,1716079877504,-151.0,0.00029041,7]
[327457609,1716079877514,-2317.87,0.00029041,2]
[327457610,1716079877523,-1543.54,0.00029041,2]
[327457611,1716079877532,-500.0,0.00029041,2]
[327457612,1716079877542,-500.0,0.00029041,2]
[327457613,1716079877551,-500.0,0.00029041,2]
[327457614,1716079877561,-500.0,0.00029041,2]
[327457615,1716079877570,-1576.46,0.00029041,2]
[327457616,1716079877579,-1727.73,0.00029041,2]
[327457617,1716079877589,-1192.7,0.00029041,2]
[327457618,1716079877598,-702.53,0.00029041,2]
[327457619,1716079877607,-500.0,0.00029041,2]
[327457620,1716079877616,-902.92,0.00029041,2]
[327457621,1716079877626,-500.0,0.00029041,2]
[327457622,1716079877635,-500.0,0.00029041,2]
[327457623,1716079877646,-750.17,0.00029041,2]
[327457624,1716079877656,-683.13,0.00029041,2]
[327457625,1716079877666,-1571.87,0.00029041,2]
[327457626,1716079877675,-1593.16,0.00029041,2]
[327457627,1716079877685,-1391.44,0.00029041,2]
[327457628,1716079877694,-734.3,0.00029041,2]
[327457629,1716079877704,-723.24,0.00029041,2]
[327457630,1716079877713,-765.2,0.00029041,2]
[327457631,1716079877722,-272.48447568,0.00029041,2]
[327457632,1716079877731,-1006.36,0.00029041,2]
[327457633,1716079877741,-500.0,0.00029041,2]
[327457634,1716079877750,-1946.51,0.00029041,2]
[327457635,1716079877759,-500.0,0.00029041,2]
[327457636,1716079877769,-500.0,0.00029041,2]
[327457637,1716079877778,-1321.13,0.00029041,2]
[327457638,1716079877787,-737.65,0.00029041,2]
[327457639,1716079877796,-340.963945,0.00029041,7]
[327457640,1716079877806,-500.0,0.00029041,2]
[327457641,1716079877815,-976.72,0.00029041,2]
[327457642,1716079877826,-182.997182,0.00029041,7]
[327457643,1716079877836,-340.963945,0.00029041,7]
[327457644,1716079877846,-1844.47,0.00029041,2]
[327457645,1716079877860,-500.0,0.00029041,2]
[327457646,1716079877870,-500.0,0.00029041,2]
[327457647,1716079877880,-1337.56,0.00029041,2]
[327457648,1716079877890,-609.15,0.00029041,2]
[327457649,1716079877899,-892.71,0.00029041,2]
[327457650,1716079877908,-182.997182,0.00029041,7]
[327457651,1716079877917,-500.0,0.00029041,2]
[327457652,1716079877927,-713.62,0.00029041,2]
[327457653,1716079877936,-2601.94,0.00029041,2]
[327457654,1716079877945,-1338.29,0.00029041,2]
[327457655,1716079877954,-500.0,0.00029041,2]
[327457656,1716079877964,-877.48,0.00029041,2]
[327457657,1716079877974,-500.0,0.00029041,2]
[327457658,1716079877983,-955.29,0.00029041,2]
[327457659,1716079877992,-3753.72,0.00029041,2]
[327457660,1716079878002,-500.0,0.00029041,2]
[327457661,1716079878011,-3260.19,0.00029041,2]
[327457662,1716079878021,-500.0,0.00029041,2]
[327457663,1716079878030,-2742.03,0.00029041,2]
[327457664,1716079878039,-1111.7,0.00029041,2]
[327457665,1716079878049,-1864.26,0.00029041,2]
[327457666,1716079878059,-500.0,0.00029041,2]
[327457667,1716079878068,-500.0,0.00029041,2]
[327457668,1716079878078,-500.0,0.00029041,2]
[327457669,1716079878088,-550.17,0.00029041,2]
[327457670,1716079878097,-500.0,0.00029041,2]
[327457671,1716079878106,-577.21,0.00029041,2]
[327457672,1716079878116,-1512.87,0.00029041,2]
[327457673,1716079878125,-697.0,0.00029041,2]
[327457674,1716079878134,-500.0,0.00029041,2]
[327457675,1716079878144,-679.17,0.00029041,2]
[327457676,1716079878153,-2533.85,0.00029041,2]
[327457677,1716079878163,-965.18,0.00029041,2]
[327457678,1716079878172,-1281.95,0.00029041,2]
[327457679,1716079878182,-193.0,0.00029041,4]
[327457680,1716079878191,-772.88,0.00029054,2]
[327457681,1716079878200,-150.0,0.00029124,7]
[327457682,1716079878210,-200.0,0.00029138,15]
[327457683,1716079878220,-157.051909,0.00029148,26]
[327457684,1716079878229,-157.051909,0.00029248,28]
[327457685,1716079878239,-747.0,0.00029273,5]
[327457686,1716079878248,-500.0,0.00029315,2]
[327457687,1716079878258,-500.0,0.00029315,2]
[327457688,1716079878269,-500.0,0.00029315,2]
[327457689,1716079878278,-500.0,0.00029315,2]
[327457690,1716079878287,-500.0,0.00029315,2]
[327457691,1716079878297,-500.0,0.00029315,2]
[327457692,1716079878306,-238.03881115,0.00029315,2]
[327457693,1716079878315,-694.12,0.00029315,2]
[327457694,1716079878325,-500.0,0.00029315,2]
[327457695,1716079878334,-500.0,0.00029315,2]
[327457696,1716079878343,-500.0,0.00029315,2]
[327457697,1716079878352,-500.0,0.00029315,2]
[327457698,1716079878362,-566.02,0.00029315,2]
[327457699,1716079878371,-500.0,0.00029315,2]
[327457700,1716079878381,-500.0,0.00029315,2]
[327457701,1716079878390,-500.0,0.00029315,2]
[327457702,1716079878399,-500.0,0.00029315,2]
[327457703,1716079878408,-559.7584714,0.00029315,2]
[327457704,1716079878418,-608.41,0.00029315,2]
[327457705,1716079878427,-500.0,0.00029315,2]
[327457706,1716079878437,-1131.97,0.00029315,2]
[327457707,1716079878446,-500.0,0.00029315,2]
[327457708,1716079878456,-579.57,0.00029315,2]
[327457709,1716079878465,-500.0,0.00029315,2]
[327457710,1716079878476,-500.0,0.00029315,2]
[327457711,1716079878485,-500.0,0.00029315,2]
[327457712,1716079878495,-500.0,0.00029315,2]
[327457713,1716079878505,-500.0,0.00029315,2]
[327457714,1716079878514,-500.09,0.00029315,2]
[327457715,1716079878523,-500.0,0.00029315,2]
[327457716,1716079878532,-873.62,0.00029315,2]
[327457717,1716079878541,-500.0,0.00029315,2]
[327457718,1716079878553,-500.0,0.00029315,2]
[327457719,1716079878562,-500.0,0.00029315,2]
[327457720,1716079878572,-500.0,0.00029315,2]
[327457721,1716079878581,-500.0,0.00029315,2]
[327457722,1716079878591,-549.29716968,0.00029315,2]
[327457723,1716079878600,-500.0,0.00029315,2]
[327457724,1716079878610,-648.09,0.00029315,2]
[327457725,1716079878619,-523.3,0.00029315,2]
[327457726,1716079878629,-500.0,0.00029315,2]
[327457727,1716079878638,-500.0,0.00029315,2]
[327457728,1716079878648,-500.0,0.00029315,2]
[327457729,1716079878657,-801.03,0.00029315,2]
[327457730,1716079878665,-558.63,0.00029315,2]
[327457731,1716079878674,-799.77,0.00029315,2]
[327457732,1716079878683,-591.98,0.00029315,2]
[327457733,1716079878691,-442.34202947,0.00029315,2]
[327457734,1716079878700,-892.31,0.00029315,2]
[327457735,1716079878709,-464.916911,0.00029315,7]
[327457736,1716079878718,-500.0,0.00029315,2]
[327457737,1716079878727,-464.916911,0.00029315,7]
[327457738,1716079878736,-655.12,0.00029315,2]
[327457739,1716079878746,-616.57,0.00029315,2]
[327457740,1716079878755,-517.62,0.00029315,2]
[327457741,1716079878765,-500.0,0.00029315,2]
[327457742,1716079878774,-500.0,0.00029315,2]
[327457743,1716079878782,-500.0,0.00029315,2]
[327457744,1716079878791,-602.52,0.00029315,2]
[327457745,1716079878800,-1082.875413,0.00029315,7]
[327457746,1716079878809,-500.0,0.00029315,2]
[327457747,1716079878818,-500.0,0.00029315,2]
[327457748,1716079878828,-840.77,0.00029315,2]
[327457749,1716079878837,-1082.875413,0.00029315,7]
[327457750,1716079878846,-500.0,0.00029315,2]
[327457751,1716079878861,-608.64,0.00029315,2]
[327457752,1716079878870,-536.02,0.00029315,2]
[327457753,1716079878880,-1106.38,0.00029315,2]
[327457754,1716079878891,-500.0,0.00029315,2]
[327457755,1716079878900,-151.0,0.00029315,7]
[327457756,1716079878910,-500.0,0.00029315,2]
[327457757,1716079878919,-500.0,0.00029315,2]
[327457758,1716079878930,-647.5344303,0.00029315,2]
[327457759,1716079878939,-500.0,0.00029315,2]
[327457760,1716079878948,-500.0,0.00029315,2]
[327457761,1716079878958,-957.21,0.00029315,2]
[327457762,1716079878967,-1257.0,0.00029315,2]
[327457763,1716079878976,-328.00194356,0.00029315,2]
[327457764,1716079878986,-500.0,0.00029315,2]
[327457765,1716079878995,-1352.16,0.00029315,2]
[327457766,1716079879004,-500.0,0.00029315,2]
[327457767,1716079879014,-684.6,0.00029315,2]
[327457768,1716079879023,-1072.66,0.00029315,2]
[327457769,1716079879033,-849.73,0.00029315,2]
[327457770,1716079879042,-500.0,0.00029315,2]
[327457771,1716079879051,-874.66,0.00029315,2]
[327457772,1716079879061,-585.08,0.00029315,2]
[327457773,1716079879070,-1990.29,0.00029315,2]
[327457774,1716079879079,-545.44,0.00029315,2]
[327457775,1716079879090,-1243.99,0.00029315,2]
[327457776,1716079879100,-500.0,0.00029315,2]
[327457777,1716079879109,-750.45,0.00029315,2]
[327457778,1716079879119,-748.72,0.00029315,2]
[327457779,1716079879128,-1292.43,0.00029315,2]
[327457780,1716079879138,-500.0,0.00029315,2]
[327457781,1716079879148,-846.9,0.00029315,2]
[327457782,1716079879157,-500.0,0.00029315,2]
[327457783,1716079879167,-1250.19,0.00029315,2]
[327457784,1716079879176,-1463.37,0.00029315,2]
[327457785,1716079879185,-500.0,0.00029315,2]
[327457786,1716079879195,-530.63,0.00029315,2]
[327457787,1716079879204,-500.0,0.00029315,2]
[327457788,1716079879213,-843.77,0.00029315,2]
[327457789,1716079879370,-1072.07,0.00029315,2]
[327457790,1716079879380,-500.0,0.00029315,2]
[327457791,1716079879390,-896.67,0.00029315,2]
[327457792,1716079879400,-408.85902332,0.00029315,2]
[327457793,1716079879409,-500.0,0.00029315,2]
[327457794,1716079879419,-319.688279,0.00029315,7]
[327457795,1716079879428,-733.96,0.00029315,2]
[327457796,1716079879438,-1493.69,0.00029315,2]
[327457797,1716079879448,-319.688279,0.00029315,7]
[327457798,1716079879457,-996.4,0.00029315,2]
[327457799,1716079879467,-500.0,0.00029315,2]
[327457800,1716079879476,-500.0,0.00029315,2]
[327457801,1716079879485,-500.0,0.00029315,2]
[327457802,1716079879494,-1067.83,0.00029315,2]
[327457803,1716079879504,-500.0,0.00029315,2]
[327457804,1716079879514,-717.91,0.00029315,2]
[327457805,1716079879523,-464.916368,0.00029315,7]
[327457806,1716079879532,-671.98,0.00029315,2]
[327457807,1716079879541,-464.916368,0.00029315,7]
[327457808,1716079879551,-414.26,0.00029315,2]
[327457809,1716079879562,-500.0,0.00029315,2]
[327457810,1716079879571,-637.51,0.00029315,2]
[327457811,1716079879580,-151.0,0.00029315,7]
[327457812,1716079879589,-596.91,0.00029315,2]
[327457813,1716079879599,-709.05,0.00029315,2]
[327457814,1716079879611,-1264.55,0.00029315,2]
[327457815,1716079879622,-151.261955,0.00029315,7]
[327457816,1716079879631,-500.0,0.00029315,2]
[327457817,1716079879640,-753.77,0.00029315,2]
[327457818,1716079879649,-500.0,0.00029315,2]
[327457819,1716079879658,-1101.63,0.00029315,2]
[327457820,1716079879668,-500.0,0.00029315,2]
[327457821,1716079879677,-1105.23,0.00029315,2]
[327457822,1716079879686,-516.07,0.00029315,2]
[327457823,1716079879695,-500.0,0.00029315,2]
[327457824,1716079879704,-500.0,0.00029315,2]
[327457825,1716079879714,-1016.72,0.00029315,2]
[327457826,1716079879723,-500.0,0.00029315,2]
[327457827,1716079879732,-1552.71,0.00029315,2]
[327457828,1716079879742,-1614.27,0.00029315,2]
[327457829,1716079879751,-151.0,0.00029315,7]
[327457830,1716079879761,-822.34,0.00029315,2]
[327457831,1716079879770,-500.0,0.00029315,2]
[327457832,1716079879780,-745.19,0.00029315,2]
[327457833,1716079879789,-861.8,0.00029315,2]
[327457834,1716079879799,-500.0,0.00029315,2]
[327457835,1716079879809,-500.0,0.00029315,2]
[327457836,1716079879818,-500.0,0.00029315,2]
[327457837,1716079879827,-867.38,0.00029315,2]
[327457838,1716079879836,-790.2,0.00029315,2]
[327457839,1716079879846,-908.09,0.00029315,2]
[327457840,1716079879860,-500.0,0.00029315,2]
[327457841,1716079879869,-2847.34,0.00029315,2]
[327457842,1716079879879,-500.0,0.00029315,2]
[327457843,1716079879888,-500.0,0.00029315,2]
[327457844,1716079879897,-231.081675,0.00029315,7]
[327457845,1716079879907,-231.081675,0.00029315,7]
[327457846,1716079879917,-500.0,0.00029315,2]
[327457847,1716079879926,-500.0,0.00029315,2]
[327457848,1716079879935,-879.34,0.00029315,2]
[327457849,1716079879945,-500.0,0.00029315,2]
[327457850,1716079879954,-1800.44,0.00029315,2]
[327457851,1716079879963,-199.54713563,0.00029315,2]
[327457852,1716079879973,-751.88,0.00029315,2]
[327457853,1716079879982,-500.0,0.00029315,2]
[327457854,1716079879991,-690.03,0.00029315,2]
[327457855,1716079880001,-1239.57,0.00029315,2]
[327457856,1716079880010,-311.691066,0.00029315,7]
[327457857,1716079880021,-311.691066,0.00029315,7]
[327457858,1716079880030,-209.044597,0.00029315,7]
[327457859,1716079880039,-694.45,0.00029315,2]
[327457860,1716079880049,-209.044597,0.00029315,7]
[327457861,1716079880058,-2119.09,0.00029315,2]
[327457862,1716079880067,-500.0,0.00029315,2]
[327457863,1716079880076,-500.0,0.00029315,2]
[327457864,1716079880086,-500.0,0.00029315,2]
[327457865,1716079880095,-2258.52,0.00029315,2]
[327457866,1716079880104,-582.13,0.00029315,2]
[327457867,1716079880113,-663.78,0.00029315,2]
[327457868,1716079880123,-592.94,0.00029315,2]
[327457869,1716079880132,-663.37,0.00029315,2]
[327457870,1716079880142,-596.02,0.00029315,2]
[327457871,1716079880151,-2187.67,0.00029315,2]
[327457872,1716079880160,-500.0,0.00029315,2]
[327457873,1716079880169,-252.86873,0.00029315,7]
[327457874,1716079880178,-500.0,0.00029315,2]
[327457875,1716079880187,-500.0,0.00029315,2]
[327457876,1716079880197,-897.21,0.00029315,2]
[327457877,1716079880206,-151.0,0.00029315,7]
[327457878,1716079880216,-500.0,0.00029315,2]
[327457879,1716079880225,-1986.87,0.00029315,2]
[327457880,1716079880234,-252.86873,0.00029315,7]
[327457881,1716079880243,-567.98,0.00029315,2]
[327457882,1716079880252,-643.54,0.00029315,2]
[327457883,1716079880261,-649.98,0.00029315,2]
[327457884,1716079880271,-2292.47,0.00029315,2]
[327457885,1716079880280,-2459.44,0.00029315,2]
[327457886,1716079880290,-151.0,0.00029315,7]
[327457887,1716079880300,-500.0,0.00029315,2]
[327457888,1716079880309,-8969.82,0.00029315,2]
[327457889,1716079880319,-702.64,0.00029315,2]
[327457890,1716079880328,-500.0,0.00029315,2]
[327457891,1716079880337,-1618.24,0.00029315,2]
[327457892,1716079880347,-500.0,0.00029315,2]
[327457893,1716079880356,-2898.95,0.00029315,2]
[327457894,1716079880365,-500.0,0.00029315,2]
[327457895,1716079880375,-7341.3,0.00029315,2]
[327457896,1716079880384,-859.92,0.00029315,2]
[327457897,1716079880395,-597.52,0.00029315,2]
[327457898,1716079880405,-2396.63,0.00029315,2]
[327457899,1716079880415,-847.62,0.00029315,2]
[327457900,1716079880425,-676.53,0.00029315,2]
[327457901,1716079880434,-813.35,0.00029315,2]
[327457902,1716079880445,-1434.0,0.00029315,2]
[327457903,1716079880454,-151.0,0.00029315,7]
[327457904,1716079880464,-9386.79,0.00029315,2]
[327457905,1716079880475,-152.059216,0.00029315,7]
[327457906,1716079880484,-500.0,0.00029315,2]
[327457907,1716079880493,-756.32,0.00029315,2]
[327457908,1716079880502,-1856.14,0.00029315,2]
[327457909,1716079880512,-30275.28,0.00029315,2]
[327457910,1716079880521,-4020.85,0.00029315,2]
[327457911,1716079880530,-762.31,0.00029315,2]
[327457912,1716079880540,-4821.09,0.00029315,2]
[327457913,1716079880549,-1175.05,0.00029315,2]
[327457914,1716079880558,-768.86,0.00029315,2]
[327457915,1716079880567,-500.0,0.00029315,2]
[327457916,1716079880576,-243.8418126,0.00029315,2]
[327457917,1716079880586,-614.98,0.00029315,2]
[327457918,1716079880594,-500.0,0.00029315,2]
[327457919,1716079880603,-8593.12,0.00029315,2]
[327457920,1716079880613,-994.65,0.00029315,2]
[327457921,1716079880622,-616.67,0.00029315,2]
[327457922,1716079880631,-900.63,0.00029315,2]
[327457923,1716079880640,-4266.05,0.00029315,2]
[327457924,1716079880649,-966.41,0.00029315,2]
[327457925,1716079880658,-912.23,0.00029315,2]
[327457926,1716079880668,-336.58209616,0.00029315,2]
[327457927,1716079880677,-500.0,0.00029315,2]
[327457928,1716079880686,-645.69,0.00029315,2]
[327457929,1716079880695,-1869.0,0.00029315,2]
[327457930,1716079880704,-6268.94,0.00029315,2]
[327457931,1716079880713,-971.87,0.00029315,2]
[327457932,1716079880723,-541.88,0.00029315,2]
[327457933,1716079880732,-942.94,0.00029315,2]
[327457934,1716079880741,-500.0,0.00029315,2]
[327457935,1716079880750,-973.68,0.00029315,2]
[327457936,1716079880759,-544.611513,0.00029315,7]
[327457937,1716079880768,-1701.01,0.00029315,2]
[327457938,1716079880777,-7483.61,0.00029315,2]
[327457939,1716079880786,-500.0,0.00029315,2]
[327457940,1716079880795,-1401.02,0.00029315,2]
[327457941,1716079880804,-676.79,0.00029315,2]
[327457942,1716079880813,-544.611513,0.00029315,7]
[327457943,1716079880821,-500.0,0.00029315,2]
[327457944,1716079880831,-537.08,0.00029315,2]
[327457945,1716079880840,-6981.65,0.00029315,2]
[327457946,1716079880850,-2717.83,0.00029315,2]
[327457947,1716079880864,-838.88,0.00029315,2]
[327457948,1716079880873,-502.76,0.00029315,2]
[327457949,1716079880882,-500.0,0.00029315,2]
[327457950,1716079880891,-2645.1,0.00029315,2]
[327457951,1716079880901,-500.0,0.00029315,2]
[327457952,1716079880910,-865.2,0.00029315,2]
[327457953,1716079880920,-1132.35,0.00029315,2]
[327457954,1716079880930,-530.646126,0.00029315,7]
[327457955,1716079880939,-812.15,0.00029315,2]
[327457956,1716079880948,-1556.62,0.00029315,2]
[327457957,1716079880957,-718.44,0.00029315,2]
[327457958,1716079880966,-1265.15,0.00029315,2]
[327457959,1716079880975,-530.646126,0.00029315,7]
[327457960,1716079880984,-14055.37,0.00029315,2]
[327457961,1716079880993,-2634.63,0.00029315,2]
[327457962,1716079881002,-15063.88,0.00029315,2]
[327457963,1716079881012,-2652.66,0.00029315,2]
[327457964,1716079881022,-742.79,0.00029315,2]
[327457965,1716079881031,-621.16,0.00029315,2]
[327457966,1716079881039,-794.5,0.00029315,2]
[327457967,1716079881049,-1250.69,0.00029315,2]
[327457968,1716079881059,-693.14,0.00029315,2]
[327457969,1716079881068,-889.38,0.00029315,2]
[327457970,1716079881078,-1988.34,0.00029315,2]
[327457971,1716079881087,-500.0,0.00029315,2]
[327457972,1716079881096,-1357.07,0.00029315,2]
[327457973,1716079881106,-998.68,0.00029315,2]
[327457974,1716079881115,-500.0,0.00029315,2]
[327457975,1716079881124,-5624.591496,0.00029315,7]
[327457976,1716079881134,-500.0,0.00029315,2]
[327457977,1716079881144,-500.0,0.00029315,2]
[327457978,1716079881153,-500.0,0.00029315,2]
[327457979,1716079881163,-601.38,0.00029315,2]
[327457980,1716079881172,-5624.591496,0.00029315,7]
[327457981,1716079881181,-894.0,0.00029315,2]
[327457982,1716079881190,-2431.12,0.00029315,2]
[327457983,1716079881199,-511.27,0.00029315,2]
[327457984,1716079881208,-1539.56,0.00029315,2]
[327457985,1716079881218,-500.0,0.00029315,2]
[327457986,1716079881227,-151.0,0.00029315,7]
[327457987,1716079881236,-1396.22,0.00029315,2]
[327457988,1716079881245,-500.0,0.00029315,2]
[327457989,1716079881255,-151.0,0.00029315,7]
[327457990,1716079881264,-1300.21,0.00029315,2]
[327457991,1716079881274,-2267.23,0.00029315,2]
[327457992,1716079881283,-1327.72,0.00029315,2]
[327457993,1716079881293,-500.0,0.00029315,2]
[327457994,1716079881302,-151.0,0.00029315,7]
[327457995,1716079881311,-500.0,0.00029315,2]
[327457996,1716079881320,-3187.9,0.00029315,2]
[327457997,1716079881330,-1229.67,0.00029315,2]
[327457998,1716079881339,-500.0,0.00029315,2]
[327457999,1716079881348,-1554.51,0.00029315,2]
[327458000,1716079881358,-500.0,0.00029315,2]
[327458001,1716079881367,-500.0,0.00029315,2]
[327458002,1716079881377,-902.06,0.00029315,2]
[327458003,1716079881387,-739.0,0.00029315,2]
[327458004,1716079881396,-744.32,0.00029315,2]
[327458005,1716079881406,-500.0,0.00029315,2]
[327458006,1716079881415,-500.0,0.00029315,2]
[327458007,1716079881424,-566.09,0.00029315,2]
[327458008,1716079881433,-151.0,0.00029315,7]
[327458009,1716079881442,-2317.87,0.00029315,2]
[327458010,1716079881451,-1543.54,0.00029315,2]
[327458011,1716079881460,-500.0,0.00029315,2]
[327458012,1716079881469,-500.0,0.00029315,2]
[327458013,1716079881479,-500.0,0.00029315,2]
[327458014,1716079881488,-500.0,0.00029315,2]
[327458015,1716079881497,-1576.46,0.00029315,2]
[327458016,1716079881506,-1727.73,0.00029315,2]
[327458017,1716079881516,-1192.7,0.00029315,2]
[327458018,1716079881526,-702.53,0.00029315,2]
[327458019,1716079881535,-500.0,0.00029315,2]
[327458020,1716079881544,-902.92,0.00029315,2]
[327458021,1716079881554,-500.0,0.00029315,2]
[327458022,1716079881563,-500.0,0.00029315,2]
[327458023,1716079881572,-750.17,0.00029315,2]
[327458024,1716079881582,-683.13,0.00029315,2]
[327458025,1716079881724,-1571.87,0.00029315,2]
[327458026,1716079881734,-1593.16,0.00029315,2]
[327458027,1716079881743,-1391.44,0.00029315,2]
[327458028,1716079881752,-734.3,0.00029315,2]
[327458029,1716079881761,-723.24,0.00029315,2]
[327458030,1716079881772,-765.2,0.00029315,2]
[327458031,1716079881781,-1006.36,0.00029315,2]
[327458032,1716079881790,-500.0,0.00029315,2]
[327458033,1716079881800,-1946.51,0.00029315,2]
[327458034,1716079881809,-500.0,0.00029315,2]
[327458035,1716079881819,-500.0,0.00029315,2]
[327458036,1716079881828,-737.65,0.00029315,2]
[327458037,1716079881838,-1321.13,0.00029315,2]